fUSD/lending_fUSD_20250209
["ID","MTS","AMOUNT","RATE_DAILY","PERIOD"]
[352416287,1739091055340,-500.0,0.0001027,2]
[352416288,1739091055349,-500.0,0.0001027,2]
[352416289,1739091055358,-500.0,0.0001027,2]
[352416290,1739091055367,-500.0,0.0001027,2]
[352416291,1739091055375,-500.0,0.0001027,2]
[352416292,1739091055385,-500.0,0.0001027,2]
[352416293,1739091055395,-502.88942784,0.0001027,2]
[352416294,1739091055403,-743.35,0.0001027,2]
[352416295,1739091055412,-500.0,0.0001027,2]
[352416296,1739091055421,-500.0,0.0001027,2]
[352416297,1739091055431,-500.0,0.0001027,2]
[352416298,1739091055440,-500.0,0.0001027,2]
[352416299,1739091055449,-500.0,0.0001027,2]
[352416300,1739091055458,-500.0,0.0001027,2]
[352416301,1739091055467,-500.0,0.0001027,2]
[352416302,1739091055476,-500.0,0.0001027,2]
[352416303,1739091055486,-397.42410027,0.0001027,2]
[352416304,1739091055495,-532.57,0.0001027,2]
[352416305,1739091055504,-500.0,0.0001027,2]
[352416306,1739091055513,-500.0,0.0001027,2]
[352416307,1739091055522,-500.0,0.0001027,2]
[352416308,1739091055531,-500.0,0.0001027,2]
[352416309,1739091055540,-500.0,0.0001027,2]
[352416310,1739091055549,-500.0,0.0001027,2]
[352416311,1739091055558,-500.0,0.0001027,2]
[352416312,1739091055567,-500.0,0.0001027,2]
[352416313,1739091055577,-500.0,0.0001027,2]
[352416314,1739091055586,-500.0,0.0001027,2]
[352416315,1739091055595,-500.0,0.0001027,2]
[352416316,1739091055604,-500.0,0.0001027,2]
[352416317,1739091055613,-500.0,0.0001027,2]
[352416318,1739091055623,-500.0,0.0001027,2]
[352416319,1739091055632,-500.0,0.0001027,2]
[352416320,1739091055641,-702.49,0.0001027,2]
[352416321,1739091055651,-500.0,0.0001027,2]
[352416322,1739091055660,-500.0,0.0001027,2]
[352416323,1739091055670,-500.0,0.0001027,2]
[352416324,1739091055679,-500.0,0.0001027,2]
[352416325,1739091055689,-500.0,0.0001027,2]
[352416326,1739091055699,-500.0,0.0001027,2]
[352416327,1739091055708,-525.31,0.0001027,2]
[352416328,1739091055717,-500.0,0.0001027,2]
[352416329,1739091055726,-500.0,0.0001027,2]
[352416330,1739091055736,-507.52,0.0001027,2]
[352416331,1739091055745,-420.8640045,0.0001027,2]
[352416332,1739091055754,-500.0,0.0001027,2]
[352416333,1739091055763,-500.0,0.0001027,2]
[352416334,1739091055772,-500.0,0.0001027,2]
[352416335,1739091055781,-500.0,0.0001027,2]
[352416336,1739091055790,-501.12,0.0001027,2]
[352416337,1739091055801,-500.0,0.0001027,2]
[352416338,1739091055815,-597.05,0.0001027,2]
[352416339,1739091055825,-500.0,0.0001027,2]
[352416340,1739091055834,-663.82,0.0001027,2]
[352416341,1739091055843,-183.58894276,0.0001027,2]
[352416342,1739091055852,-500.0,0.0001027,2]
[352416343,1739091055861,-500.0,0.0001027,2]
[352416344,1739091055872,-500.0,0.0001027,2]
[352416345,1739091055881,-500.0,0.0001027,2]
[352416346,1739091055890,-500.0,0.0001027,2]
[352416347,1739091055899,-557.21,0.0001027,2]
[352416348,1739091055908,-500.0,0.0001027,2]
[352416349,1739091055917,-500.0,0.0001027,2]
[352416350,1739091055926,-500.0,0.0001027,2]
[352416351,1739091055935,-879.91,0.0001027,2]
[352416352,1739091055944,-577.01394756,0.0001027,2]
[352416353,1739091055953,-500.0,0.0001027,2]
[352416354,1739091055962,-517.3548979,0.0001027,2]
[352416355,1739091055973,-500.0,0.0001027,2]
[352416356,1739091055982,-500.0,0.0001027,2]
[352416357,1739091055991,-500.0,0.0001027,2]
[352416358,1739091056000,-500.0,0.0001027,2]
[352416359,1739091056009,-500.0,0.0001027,2]
[352416360,1739091056018,-500.0,0.0001027,2]
[352416361,1739091056027,-500.0,0.0001027,2]
[352416362,1739091056036,-500.0,0.0001027,2]
[352416363,1739091056045,-500.0,0.0001027,2]
[352416364,1739091056054,-500.0,0.0001027,2]
[352416365,1739091056063,-500.0,0.0001027,2]
[352416366,1739091056072,-504.88701225,0.0001027,2]
[352416367,1739091056081,-500.0,0.0001027,2]
[352416368,1739091056090,-500.0,0.0001027,2]
[352416369,1739091056099,-580.09,0.0001027,2]
[352416370,1739091056108,-537.23,0.0001027,2]
[352416371,1739091056117,-500.0,0.0001027,2]
[352416372,1739091056126,-500.0,0.0001027,2]
[352416373,1739091056138,-500.0,0.0001027,2]
[352416374,1739091056148,-500.0,0.0001027,2]
[352416375,1739091056160,-500.0,0.0001027,2]
[352416376,1739091056169,-595.25,0.0001027,2]
[352416377,1739091056180,-500.0,0.0001027,2]
[352416378,1739091056189,-898.26,0.0001027,2]
[352416379,1739091056198,-502.22560674,0.0001027,2]
[352416380,1739091056207,-505.43,0.0001027,2]
[352416381,1739091056217,-500.0,0.0001027,2]
[352416382,1739091056226,-613.12922841,0.0001027,2]
[352416383,1739091056235,-500.0,0.0001027,2]
[352416384,1739091056245,-500.0,0.0001027,2]
[352416385,1739091056254,-500.0,0.0001027,2]
[352416386,1739091056264,-680.73,0.0001027,2]
[352416387,1739091056273,-500.0,0.0001027,2]
[352416388,1739091056282,-500.0,0.0001027,2]
[352416389,1739091056291,-500.0,0.0001027,2]
[352416390,1739091056301,-500.0,0.0001027,2]
[352416391,1739091056310,-577.14,0.0001027,2]
[352416392,1739091056319,-500.0,0.0001027,2]
[352416393,1739091056329,-500.0,0.0001027,2]
[352416394,1739091056343,-500.0,0.0001027,2]
[352416395,1739091056352,-500.0,0.0001027,2]
[352416396,1739091056362,-500.0,0.0001027,2]
[352416397,1739091056371,-500.0,0.0001027,2]
[352416398,1739091056383,-500.0,0.0001027,2]
[352416399,1739091056392,-500.0,0.0001027,2]
[352416400,1739091056401,-500.0,0.0001027,2]
[352416401,1739091056411,-500.0,0.0001027,2]
[352416402,1739091056421,-500.0,0.0001027,2]
[352416403,1739091056430,-500.0,0.0001027,2]
[352416404,1739091056440,-500.0,0.0001027,2]
[352416405,1739091056449,-500.0,0.0001027,2]
[352416406,1739091056458,-500.0,0.0001027,2]
[352416407,1739091056468,-500.0,0.0001027,2]
[352416408,1739091056478,-500.0,0.0001027,2]
[352416409,1739091056487,-500.0,0.0001027,2]
[352416410,1739091056497,-500.0,0.0001027,2]
[352416411,1739091056506,-504.09144907,0.0001027,2]
[352416412,1739091056515,-500.0,0.0001027,2]
[352416413,1739091056525,-500.0,0.0001027,2]
[352416414,1739091056534,-500.0,0.0001027,2]
[352416415,1739091056544,-500.0,0.0001027,2]
[352416416,1739091056553,-500.0,0.0001027,2]
[352416417,1739091056563,-500.0,0.0001027,2]
[352416418,1739091056572,-500.0,0.0001027,2]
[352416419,1739091056581,-500.0,0.0001027,2]
[352416420,1739091056591,-500.0,0.0001027,2]
[352416421,1739091056601,-511.63,0.0001027,2]
[352416422,1739091056610,-500.0,0.0001027,2]
[352416423,1739091056619,-500.0,0.0001027,2]
[352416424,1739091056628,-500.0,0.0001027,2]
[352416425,1739091056637,-500.0,0.0001027,2]
[352416426,1739091056647,-500.0,0.0001027,2]
[352416427,1739091056656,-500.0,0.0001027,2]
[352416428,1739091056666,-500.0,0.0001027,2]
[352416429,1739091056676,-500.0,0.0001027,2]
[352416430,1739091056685,-500.0,0.0001027,2]
[352416431,1739091056695,-598.25,0.0001027,2]
[352416432,1739091056704,-500.0,0.0001027,2]
[352416433,1739091056713,-500.0,0.0001027,2]
[352416434,1739091056723,-503.78486544,0.0001027,2]
[352416435,1739091056732,-500.0,0.0001027,2]
[352416436,1739091056742,-500.0,0.0001027,2]
[352416437,1739091056751,-878.17,0.0001027,2]
[352416438,1739091056761,-500.0,0.0001027,2]
[352416439,1739091056770,-500.0,0.0001027,2]
[352416440,1739091056779,-500.0,0.0001027,2]
[352416441,1739091056787,-500.0,0.0001027,2]
[352416442,1739091056797,-500.0,0.0001027,2]
[352416443,1739091056806,-500.0,0.0001027,2]
[352416444,1739091056815,-500.0,0.0001027,2]
[352416445,1739091056824,-477.19207424,0.0001027,2]
[352416446,1739091056834,-500.0,0.0001027,2]
[352416447,1739091056842,-500.0,0.0001027,2]
[352416448,1739091056851,-500.0,0.0001027,2]
[352416449,1739091056861,-500.0,0.0001027,2]
[352416450,1739091056870,-564.66,0.0001027,2]
[352416451,1739091056879,-500.0,0.0001027,2]
[352416452,1739091056888,-500.0,0.0001027,2]
[352416453,1739091056898,-500.0,0.0001027,2]
[352416454,1739091056909,-500.0,0.0001027,2]
[352416455,1739091056918,-500.0,0.0001027,2]
[352416456,1739091056928,-500.0,0.0001027,2]
[352416457,1739091056937,-534.56,0.0001027,2]
[352416458,1739091056947,-500.0,0.0001027,2]
[352416459,1739091056957,-500.0,0.0001027,2]
[352416460,1739091056966,-500.0,0.0001027,2]
[352416461,1739091056975,-500.0,0.0001027,2]
[352416462,1739091056984,-500.0,0.0001027,2]
[352416463,1739091056994,-512.94,0.0001027,2]
[352416464,1739091057003,-500.0,0.0001027,2]
[352416465,1739091057012,-504.71680737,0.0001027,2]
[352416466,1739091057021,-500.0,0.0001027,2]
[352416467,1739091057030,-500.0,0.0001027,2]
[352416468,1739091057039,-531.97,0.0001027,2]
[352416469,1739091057049,-500.0,0.0001027,2]
[352416470,1739091057059,-500.0,0.0001027,2]
[352416471,1739091057068,-899.22,0.0001027,2]
[352416472,1739091057077,-500.0,0.0001027,2]
[352416473,1739091057087,-500.0,0.0001027,2]
[352416474,1739091057097,-500.0,0.0001027,2]
[352416475,1739091057106,-659.84,0.0001027,2]
[352416476,1739091057115,-500.0,0.0001027,2]
[352416477,1739091057124,-500.0,0.0001027,2]
[352416478,1739091057134,-500.0,0.0001027,2]
[352416479,1739091057143,-500.0,0.0001027,2]
[352416480,1739091057153,-500.0,0.0001027,2]
[352416481,1739091057162,-500.0,0.0001027,2]
[352416482,1739091057171,-965.84,0.0001027,2]
[352416483,1739091057180,-500.0,0.0001027,2]
[352416484,1739091057189,-500.0,0.0001027,2]
[352416485,1739091057200,-500.0,0.0001027,2]
[352416486,1739091057344,-500.0,0.0001027,2]
[352416487,1739091057355,-555.57,0.0001027,2]
[352416488,1739091057365,-500.0,0.0001027,2]
[352416489,1739091057375,-500.0,0.0001027,2]
[352416490,1739091057386,-500.0,0.0001027,2]
[352416491,1739091057396,-500.0,0.0001027,2]
[352416492,1739091057406,-500.0,0.0001027,2]
[352416493,1739091057416,-500.0,0.0001027,2]
[352416494,1739091057425,-500.0,0.0001027,2]
[352416495,1739091057434,-500.0,0.0001027,2]
[352416496,1739091057444,-583.36,0.0001027,2]
[352416497,1739091057453,-497.92100025,0.0001027,2]
[352416498,1739091057462,-500.0,0.0001027,2]
[352416499,1739091057471,-500.0,0.0001027,2]
[352416500,1739091057479,-508.67,0.0001027,2]
[352416501,1739091057489,-500.0,0.0001027,2]
[352416502,1739091057498,-500.0,0.0001027,2]
[352416503,1739091057507,-500.0,0.0001027,2]
[352416504,1739091057517,-500.0,0.0001027,2]
[352416505,1739091057527,-500.0,0.0001027,2]
[352416506,1739091057536,-500.0,0.0001027,2]
[352416507,1739091057545,-505.66072293,0.0001027,2]
[352416508,1739091057554,-500.0,0.0001027,2]
[352416509,1739091057563,-500.0,0.0001027,2]
[352416510,1739091057573,-633.13,0.0001027,2]
[352416511,1739091057582,-500.0,0.0001027,2]
[352416512,1739091057591,-500.0,0.0001027,2]
[352416513,1739091057600,-500.0,0.0001027,2]
[352416514,1739091057609,-567.7,0.0001027,2]
[352416515,1739091057618,-500.0,0.0001027,2]
[352416516,1739091057629,-500.0,0.0001027,2]
[352416517,1739091057639,-502.13547077,0.0001027,2]
[352416518,1739091057648,-500.0,0.0001027,2]
[352416519,1739091057658,-576.66,0.0001027,2]
[352416520,1739091057667,-500.0,0.0001027,2]
[352416521,1739091057676,-500.0,0.0001027,2]
[352416522,1739091057686,-500.0,0.0001027,2]
[352416523,1739091057695,-791.06,0.0001027,2]
[352416524,1739091057704,-500.0,0.0001027,2]
[352416525,1739091057713,-500.0,0.0001027,2]
[352416526,1739091057722,-500.0,0.0001027,2]
[352416527,1739091057731,-558.88,0.0001027,2]
[352416528,1739091057740,-500.0,0.0001027,2]
[352416529,1739091057749,-500.0,0.0001027,2]
[352416530,1739091057758,-500.0,0.0001027,2]
[352416531,1739091057767,-500.0,0.0001027,2]
[352416532,1739091057776,-587.99,0.0001027,2]
[352416533,1739091057785,-500.0,0.0001027,2]
[352416534,1739091057794,-500.0,0.0001027,2]
[352416535,1739091057803,-500.0,0.0001027,2]
[352416536,1739091057812,-500.0,0.0001027,2]
[352416537,1739091057820,-500.0,0.0001027,2]
[352416538,1739091057831,-638.23747297,0.00010271,2]
[352416539,1739091057841,-604.35,0.00010271,2]
[352416540,1739091057851,-604.35,0.00010271,2]
[352416541,1739091057860,-604.35,0.00010271,2]
[352416542,1739091057869,-500.0,0.00010273,2]
[352416543,1739091057879,-637.06,0.00010326,2]
[352416544,1739091057888,-500.0,0.00010334,2]
[352416545,1739091057897,-500.0,0.00010334,2]
[352416546,1739091057906,-2342.0,0.00010343,2]
[352416547,1739091057915,-500.0,0.00010343,2]
[352416548,1739091057925,-500.0,0.00010343,2]
[352416549,1739091057934,-500.0,0.00010343,2]
[352416550,1739091057943,-500.0,0.00010343,2]
[352416551,1739091057953,-431.7357272,0.0001037,2]
[352416552,1739091057962,-500.0,0.00010373,2]
[352416553,1739091057971,-1000.0,0.00010391,2]
[352416554,1739091057981,-5095.81391905,0.000104,2]
[352416555,1739091057991,-604.35,0.00010405,2]
[352416556,1739091058000,-1290.37,0.00010405,2]
[352416557,1739091058009,-1232.73,0.00010405,2]
[352416558,1739091058018,-650.98,0.00010405,2]
[352416559,1739091058028,-936.12,0.00010405,2]
[352416560,1739091058037,-887.89,0.00010405,2]
[352416561,1739091058046,-812.49,0.00010405,2]
[352416562,1739091058055,-1619.99,0.00010405,2]
[352416563,1739091058064,-500.0,0.00010405,2]
[352416564,1739091058074,-1614.19,0.00010405,2]
[352416565,1739091058083,-1286.74,0.00010405,2]
[352416566,1739091058092,-500.0,0.00010405,2]
[352416567,1739091058102,-606.94,0.00010405,2]
[352416568,1739091058111,-1486.51,0.00010405,2]
[352416569,1739091058120,-1746.19,0.00010405,2]
[352416570,1739091058130,-1788.17,0.00010405,2]
[352416571,1739091058139,-1449.34,0.00010405,2]
[352416572,1739091058148,-1644.83,0.00010405,2]
[352416573,1739091058158,-500.0,0.00010405,2]
[352416574,1739091058167,-727.7,0.00010405,2]
[352416575,1739091058176,-1769.26,0.00010405,2]
[352416576,1739091058185,-500.0,0.00010405,2]
[352416577,1739091058194,-500.0,0.00010405,2]
[352416578,1739091058203,-1201.81,0.00010405,2]
[352416579,1739091058213,-1437.52,0.00010405,2]
[352416580,1739091058222,-659.24,0.00010405,2]
[352416581,1739091058231,-411.747791,0.00010405,2]
[352416582,1739091058240,-688.72,0.00010405,2]
[352416583,1739091058249,-823.78,0.00010405,2]
[352416584,1739091058258,-500.0,0.00010405,2]
[352416585,1739091058268,-393.879823,0.00010406,2]
[352416586,1739091058277,-251.91712,0.00010406,2]
[352416587,1739091058286,-500.0,0.00010406,2]
[352416588,1739091058295,-500.0,0.00010406,2]
[352416589,1739091058304,-500.0,0.00010406,2]
[352416590,1739091058313,-500.0,0.00010406,2]
[352416591,1739091058323,-500.0,0.00010406,2]
[352416592,1739091058336,-500.09,0.00010406,2]
[352416593,1739091058345,-396.24,0.00010406,2]
[352416594,1739091058354,-500.0,0.00010406,2]
[352416595,1739091058364,-500.0,0.00010406,2]
[352416596,1739091058374,-507.52,0.00010406,2]
[352416597,1739091058383,-500.0,0.00010406,2]
[352416598,1739091058392,-500.0,0.00010406,2]
[352416599,1739091058401,-500.0,0.00010406,2]
[352416600,1739091058412,-500.0,0.00010406,2]
[352416601,1739091058421,-500.0,0.00010406,2]
[352416602,1739091058430,-500.0,0.00010406,2]
[352416603,1739091058440,-608.75,0.00010406,2]
[352416604,1739091058449,-500.0,0.00010406,2]
[352416605,1739091058460,-500.0,0.00010406,2]
[352416606,1739091058469,-500.0,0.00010406,2]
[352416607,1739091058479,-500.0,0.00010406,2]
[352416608,1739091058489,-500.0,0.00010406,2]
[352416609,1739091058498,-500.0,0.00010406,2]
[352416610,1739091058508,-500.0,0.00010406,2]
[352416611,1739091058517,-500.0,0.00010406,2]
[352416612,1739091058527,-500.0,0.00010406,2]
[352416613,1739091058536,-500.0,0.00010406,2]
[352416614,1739091058546,-500.0,0.00010406,2]
[352416615,1739091058556,-500.0,0.00010406,2]
[352416616,1739091058565,-500.0,0.00010406,2]
[352416617,1739091058575,-500.0,0.00010406,2]
[352416618,1739091058584,-500.0,0.00010406,2]
[352416619,1739091058594,-500.0,0.00010406,2]
[352416620,1739091058604,-500.0,0.00010406,2]
[352416621,1739091058614,-650.23,0.00010406,2]
[352416622,1739091058623,-500.0,0.00010406,2]
[352416623,1739091058633,-500.0,0.00010406,2]
[352416624,1739091058642,-500.0,0.00010406,2]
[352416625,1739091058652,-500.0,0.00010406,2]
[352416626,1739091058661,-695.23,0.00010406,2]
[352416627,1739091058671,-500.0,0.00010406,2]
[352416628,1739091058680,-500.0,0.00010406,2]
[352416629,1739091058689,-500.0,0.00010406,2]
[352416630,1739091058699,-500.0,0.00010406,2]
[352416631,1739091058709,-674.96,0.00010406,2]
[352416632,1739091058718,-513.36,0.00010406,2]
[352416633,1739091058727,-500.0,0.00010406,2]
[352416634,1739091058737,-578.86,0.00010406,2]
[352416635,1739091058746,-500.0,0.00010406,2]
[352416636,1739091058756,-500.0,0.00010406,2]
[352416637,1739091058765,-500.0,0.00010406,2]
[352416638,1739091058774,-500.0,0.00010406,2]
[352416639,1739091058784,-500.0,0.00010406,2]
[352416640,1739091058793,-500.0,0.00010406,2]
[352416641,1739091058803,-821.75,0.00010406,2]
[352416642,1739091058813,-500.0,0.00010406,2]
[352416643,1739091058824,-500.0,0.00010406,2]
[352416644,1739091058834,-500.0,0.00010406,2]
[352416645,1739091058843,-500.0,0.00010406,2]
[352416646,1739091058853,-500.0,0.00010406,2]
[352416647,1739091058862,-500.0,0.00010406,2]
[352416648,1739091058871,-608.97,0.00010406,2]
[352416649,1739091058881,-500.0,0.00010406,2]
[352416650,1739091058890,-500.0,0.00010406,2]
[352416651,1739091058900,-500.0,0.00010406,2]
[352416652,1739091058909,-500.0,0.00010406,2]
[352416653,1739091058919,-500.0,0.00010406,2]
[352416654,1739091058928,-685.97,0.00010406,2]
[352416655,1739091058938,-500.0,0.00010406,2]
[352416656,1739091058948,-500.0,0.00010406,2]
[352416657,1739091058957,-500.0,0.00010406,2]
[352416658,1739091058967,-500.0,0.00010406,2]
[352416659,1739091058976,-562.27,0.00010406,2]
[352416660,1739091058987,-834.9,0.00010406,2]
[352416661,1739091058996,-566.01,0.00010406,2]
[352416662,1739091059006,-738.92,0.00010406,2]
[352416663,1739091059016,-500.0,0.00010406,2]
[352416664,1739091059025,-500.0,0.00010406,2]
[352416665,1739091059034,-500.0,0.00010406,2]
[352416666,1739091059045,-500.0,0.00010406,2]
[352416667,1739091059055,-500.0,0.00010406,2]
[352416668,1739091059067,-776.51,0.00010406,2]
[352416669,1739091059076,-500.0,0.00010406,2]
[352416670,1739091059086,-500.0,0.00010406,2]
[352416671,1739091059095,-500.0,0.00010406,2]
[352416672,1739091059105,-1288.32,0.00010406,2]
[352416673,1739091059114,-577.78,0.00010406,2]
[352416674,1739091059124,-638.7,0.00010406,2]
[352416675,1739091059133,-1745.54,0.00010406,2]
[352416676,1739091059143,-500.0,0.00010406,2]
[352416677,1739091059153,-500.0,0.00010406,2]
[352416678,1739091059164,-500.0,0.00010406,2]
[352416679,1739091059174,-500.0,0.00010406,2]
[352416680,1739091059184,-500.0,0.00010406,2]
[352416681,1739091059193,-500.0,0.00010406,2]
[352416682,1739091059203,-500.0,0.00010406,2]
[352416683,1739091059212,-500.0,0.00010406,2]
[352416684,1739091059221,-1627.73,0.00010406,2]
[352416685,1739091059230,-500.0,0.00010406,2]
[352416686,1739091059240,-665.6,0.00010406,2]
[352416687,1739091059253,-867.43,0.00010406,2]
[352416688,1739091059262,-500.0,0.00010406,2]
[352416689,1739091059271,-1117.36,0.00010406,2]
[352416690,1739091059281,-500.0,0.00010406,2]
[352416691,1739091059291,-500.0,0.00010406,2]
[352416692,1739091059300,-777.07,0.00010406,2]
[352416693,1739091059310,-500.0,0.00010406,2]
[352416694,1739091059319,-579.6531756,0.00010406,2]
[352416695,1739091059329,-904.72,0.00010406,2]
[352416696,1739091059341,-500.0,0.00010406,2]
[352416697,1739091059351,-1668.55,0.00010406,2]
[352416698,1739091059361,-1180.27,0.00010406,2]
[352416699,1739091059370,-688.38,0.00010406,2]
[352416700,1739091059381,-717.19,0.00010406,2]
[352416701,1739091059390,-500.0,0.00010406,2]
[352416702,1739091059399,-500.0,0.00010406,2]
[352416703,1739091059409,-1358.37,0.00010406,2]
[352416704,1739091059419,-500.0,0.00010406,2]
[352416705,1739091059429,-802.51,0.00010406,2]
[352416706,1739091059438,-500.0,0.00010406,2]
[352416707,1739091059448,-867.71,0.00010406,2]
[352416708,1739091059457,-1367.13,0.00010406,2]
[352416709,1739091059467,-500.0,0.00010406,2]
[352416710,1739091059476,-500.0,0.00010406,2]
[352416711,1739091059485,-981.98,0.00010406,2]
[352416712,1739091059495,-500.0,0.00010406,2]
[352416713,1739091059504,-500.0,0.00010406,2]
[352416714,1739091059514,-619.0,0.00010406,2]
[352416715,1739091059525,-956.3,0.00010406,2]
[352416716,1739091059534,-500.0,0.00010406,2]
[352416717,1739091059543,-500.0,0.00010406,2]
[352416718,1739091059553,-500.0,0.00010406,2]
[352416719,1739091059562,-500.0,0.00010406,2]
[352416720,1739091059572,-2554.42,0.00010406,2]
[352416721,1739091059583,-500.0,0.00010406,2]
[352416722,1739091059592,-1258.47,0.00010406,2]
[352416723,1739091059602,-500.0,0.00010406,2]
[352416724,1739091059740,-500.0,0.00010406,2]
[352416725,1739091059751,-518.82,0.00010406,2]
[352416726,1739091059761,-802.42,0.00010406,2]
[352416727,1739091059771,-3620.78,0.00010406,2]
[352416728,1739091059781,-500.0,0.00010406,2]
[352416729,1739091059791,-1445.92,0.00010406,2]
[352416730,1739091059800,-500.0,0.00010406,2]
[352416731,1739091059810,-500.0,0.00010406,2]
[352416732,1739091059819,-1822.37,0.00010406,2]
[352416733,1739091059829,-702.66,0.00010406,2]
[352416734,1739091059839,-946.79,0.00010406,2]
[352416735,1739091059848,-744.37,0.00010406,2]
[352416736,1739091059858,-500.0,0.00010406,2]
[352416737,1739091059868,-4051.93,0.00010406,2]
[352416738,1739091059879,-525.36,0.00010406,2]
[352416739,1739091059888,-500.0,0.00010406,2]
[352416740,1739091059897,-500.0,0.00010406,2]
[352416741,1739091059907,-1471.81,0.00010406,2]
[352416742,1739091059916,-500.0,0.00010406,2]
[352416743,1739091059925,-1636.45,0.00010406,2]
[352416744,1739091059935,-500.0,0.00010406,2]
[352416745,1739091059944,-1735.1,0.00010406,2]
[352416746,1739091059954,-566.52,0.00010406,2]
[352416747,1739091059963,-500.0,0.00010406,2]
[352416748,1739091059973,-500.0,0.00010406,2]
[352416749,1739091059983,-832.65,0.00010406,2]
[352416750,1739091059993,-1964.0,0.00010406,2]
[352416751,1739091060004,-500.0,0.00010406,2]
[352416752,1739091060013,-500.0,0.00010406,2]
[352416753,1739091060022,-727.53,0.00010406,2]
[352416754,1739091060031,-693.75,0.00010406,2]
[352416755,1739091060040,-500.0,0.00010406,2]
[352416756,1739091060051,-500.0,0.00010406,2]
[352416757,1739091060060,-553.98,0.00010406,2]
[352416758,1739091060070,-500.0,0.00010406,2]
[352416759,1739091060079,-500.0,0.00010406,2]
[352416760,1739091060088,-500.0,0.00010406,2]
[352416761,1739091060098,-500.0,0.00010406,2]
[352416762,1739091060108,-5574.69,0.00010406,2]
[352416763,1739091060117,-518.08,0.00010406,2]
[352416764,1739091060126,-500.0,0.00010406,2]
[352416765,1739091060136,-500.0,0.00010406,2]
[352416766,1739091060145,-500.0,0.00010406,2]
[352416767,1739091060154,-1246.38,0.00010406,2]
[352416768,1739091060163,-500.0,0.00010406,2]
[352416769,1739091060172,-575.4,0.00010406,2]
[352416770,1739091060182,-2077.5,0.00010406,2]
[352416771,1739091060191,-500.0,0.00010406,2]
[352416772,1739091060201,-590.49,0.00010406,2]
[352416773,1739091060211,-500.0,0.00010406,2]
[352416774,1739091060220,-500.0,0.00010406,2]
[352416775,1739091060230,-500.0,0.00010406,2]
[352416776,1739091060240,-500.0,0.00010406,2]
[352416777,1739091060249,-879.95,0.00010406,2]
[352416778,1739091060259,-500.0,0.00010406,2]
[352416779,1739091060273,-1758.47,0.00010406,2]
[352416780,1739091060282,-4113.67,0.00010406,2]
[352416781,1739091060292,-1944.52,0.00010406,2]
[352416782,1739091060301,-500.0,0.00010406,2]
[352416783,1739091060311,-500.0,0.00010406,2]
[352416784,1739091060320,-500.0,0.00010406,2]
[352416785,1739091060329,-500.0,0.00010406,2]
[352416786,1739091060340,-850.95,0.00010406,2]